bitfinex/quotes_ETHUSD_20251116
["timestamp","ask_amount","ask_price","bid_price","bid_amount"]
[1763334354855,0.405504,3045.3,3041.2,0.496]
[1763334355064,0.405504,3045.1,3040.4,0.496]
[1763334355547,0.405504,3044.9,3040.5,0.497]
[1763334355949,1.1337408,3044.7,3040.6,0.405504]
[1763334356251,0.405504,3044.6,3040.5,0.001]
[1763334356481,1.1337408,3044.4,3040.5,0.001]
[1763334356753,1.1337408,3044.2,3040.5,0.001]
[1763334356927,0.405504,3044.1,3040.5,0.001]
[1763334357283,3.479,3043.8,3040.5,0.001]
[1763334357554,0.405504,3042.8,3040.2,0.001]
[1763334357754,0.1825,3040.6,3039.9,0.001]
[1763334357961,1.486,3040.5,3037.1,0.496]
[1763334358254,1.486,3040.5,3035.5,5.65991733]
[1763334358255,1.9496,3040.5,3036.3,1.63866934]
[1763334358439,0.405504,3040.3,3036.3,1.63866934]
[1763334358616,2.972,3040.2,3036.5,1.68710115]
[1763334358816,1.1337408,3040.1,3036.5,1.68710115]
[1763334359016,0.4636,3040.1,3036.7,1.65128626]
[1763334359216,1.9496,3040.0,3036.9,1.67152033]
[1763334359627,1.9496,3040.0,3036.6,0.21831011]
[1763334359628,0.4636,3039.9,3037.1,1.5392448]
[1763334359835,1.3162408,3040.6,3037.1,1.5392448]
[1763334359836,1.486,3039.8,3037.1,1.5392448]
[1763334360031,1.486,3039.8,3037.3,0.405504]
[1763334360248,0.4636,3041.3,3037.3,0.64957888]
[1763334360576,0.4636,3041.3,3037.5,0.405504]
[1763334360781,1.486,3041.2,3037.7,0.405504]
[1763334361269,3.4356,3041.1,3037.8,0.496]
[1763334361486,0.4636,3041.1,3037.9,0.405504]
[1763334361674,1.486,3041.0,3037.9,0.405504]
[1763334361872,1.486,3041.0,3038.0,0.496]
[1763334362027,0.4636,3040.9,3038.0,0.496]
[1763334362228,1.486,3040.8,3038.0,0.496]
[1763334362469,1.486,3040.7,3038.1,0.405504]
[1763334362774,1.486,3040.7,3038.5,0.405504]
[1763334362975,1.486,3040.7,3038.7,0.405504]
[1763334363191,0.4636,3043.3,3038.9,0.405504]
[1763334363671,1.487,3043.2,3039.1,0.405504]
[1763334364012,0.4636,3043.3,3039.1,0.405504]
[1763334364165,2.32881864,3046.9,3039.3,0.405504]
[1763334364340,0.4636,3043.9,3039.3,0.405504]
[1763334364671,0.4636,3043.9,3038.8,1.3226408]
[1763334364672,0.4636,3043.9,3039.5,0.405504]
[1763334364862,47.26396171,3043.8,3039.7,0.405504]
[1763334365064,1.1337408,3043.7,3039.7,0.405504]
[1763334365237,2.8209002,3044.9,3039.1,0.496]
[1763334365238,1.5392448,3043.5,3039.1,0.496]
[1763334365437,44.28996171,3043.4,3039.1,0.496]
[1763334365774,1.487,3043.3,3039.1,0.496]
[1763334365996,1.487,3043.3,3039.2,0.405504]
[1763334366286,0.4636,3043.2,3039.2,0.405504]
[1763334366597,0.405504,3042.9,3039.3,0.496]
[1763334367071,2.87792408,3046.0,3036.6,3.11018274]
[1763334367072,0.405504,3042.6,3039.0,0.001]
[1763334367278,0.405504,3042.2,3039.0,0.001]
[1763334367476,1.1337408,3042.4,3039.0,0.001]
[1763334367683,1.9506,3042.3,3039.2,0.405504]
[1763334367845,0.4636,3042.2,3039.0,0.001]
[1763334368046,1.1337408,3042.0,3039.0,0.001]
[1763334368259,1.1337408,3041.8,3039.0,0.001]
[1763334368455,0.4636,3042.1,3039.1,0.496]
[1763334368773,0.1825,3042.8,3039.2,0.405504]
[1763334368774,1.487,3042.0,3039.2,0.405504]
[1763334368977,1.487,3041.9,3039.2,0.405504]
[1763334369144,0.4636,3042.7,3039.4,0.405504]
[1763334369342,1.487,3042.6,3039.4,0.405504]
[1763334369543,0.4636,3043.4,3039.6,0.405504]
[1763334369769,1.9506,3043.3,3039.6,0.405504]
[1763334369984,0.4636,3045.4,3039.8,0.405504]
[1763334370140,44.40854868,3045.3,3039.8,1.5392448]
[1763334370344,44.40854868,3045.3,3040.0,0.405504]
[1763334370591,0.4636,3045.2,3040.0,0.405504]
[1763334370755,44.87214868,3045.2,3040.2,0.405504]
[1763334370953,0.4636,3045.2,3040.2,1.5392448]
[1763334371150,1.9506,3045.1,3040.6,0.405504]
[1763334371382,0.4636,3045.0,3040.8,0.405504]
[1763334371615,0.4636,3045.0,3041.0,0.405504]
[1763334371770,1.487,3044.9,3041.0,0.405504]
[1763334371946,1.487,3044.9,3041.2,0.405504]
[1763334372144,1.9506,3044.8,3041.2,0.405504]
[1763334372482,1.487,3044.7,3041.4,0.405504]
[1763334372680,1.9506,3044.7,3041.4,0.405504]
[1763334372896,0.4636,3044.6,3041.4,0.496]
[1763334373065,0.4636,3044.6,3039.9,1.33726528]
[1763334373066,46.59276911,3044.5,3040.5,0.496]
[1763334373271,2.21942341,3044.4,3039.4,0.1889]
[1763334373457,1.5392448,3044.2,3040.0,0.496]
[1763334373662,1.487,3044.1,3040.0,0.496]
[1763334373899,1.5392448,3044.0,3040.0,0.496]
[1763334374120,1.1337408,3043.8,3040.0,0.496]
[1763334374418,0.405504,3043.5,3039.1,0.496]
[1763334374701,3.479,3042.6,3038.4,0.001]
[1763334375011,1.1337408,3043.2,3038.4,0.001]
[1763334375012,0.405504,3042.2,3038.4,0.001]
[1763334375314,0.405504,3041.7,3038.4,0.001]
[1763334375603,0.68021144,3041.9,3038.4,0.6859]
[1763334375806,0.1825,3042.5,3038.4,0.6859]
[1763334375807,0.405504,3041.5,3038.4,0.001]
[1763334376011,1.487,3041.7,3038.4,0.001]
[1763334376012,0.405504,3041.3,3038.4,0.001]
[1763334376213,1.5392448,3041.3,3038.4,0.001]
[1763334376362,0.405504,3041.1,3038.4,0.001]
[1763334376561,0.1965,3039.1,3038.4,0.001]
[1763334376894,0.1965,3039.1,3036.0,0.4629]
[1763334377087,0.405504,3038.9,3034.3,1.62017771]
[1763334377303,0.405504,3038.9,3033.9,4.00907421]
[1763334377304,0.405504,3038.9,3035.1,0.4629]
[1763334377511,0.4839,3038.8,3035.1,0.4629]
[1763334377727,45.97418098,3038.8,3035.1,0.4629]
[1763334377894,1.487,3038.7,3035.1,0.4629]
[1763334378210,0.4839,3038.7,3035.1,0.4629]
[1763334378511,1.9709,3038.6,3035.1,0.4629]
[1763334378712,0.889404,3038.5,3035.1,0.4629]
[1763334378991,1.487,3038.4,3035.1,0.4629]
[1763334379195,1.487,3038.3,3035.1,0.4629]
[1763334379399,0.4839,3038.3,3035.1,0.4629]
[1763334379705,1.487,3038.2,3035.2,0.405504]
[1763334380064,1.487,3038.1,3035.4,0.405504]
[1763334380475,1.487,3038.0,3035.6,0.405504]
[1763334380679,1.487,3037.9,3035.6,0.405504]
[1763334380890,0.6804,3040.8,3035.8,0.405504]
[1763334381077,0.6804,3040.8,3036.0,2.67087814]
[1763334381287,2.87792408,3043.9,3035.7,2.09030066]
[1763334381288,0.4544,3041.4,3036.2,3.80461894]
[1763334381466,0.4544,3041.4,3036.4,1.5392448]
[1763334381668,0.4544,3041.4,3036.4,0.405504]
[1763334381961,0.4544,3041.4,3036.3,1.6139408]
[1763334381962,0.4544,3041.4,3036.6,0.405504]
[1763334382397,0.4544,3041.4,3036.9,0.405504]
[1763334382797,0.4544,3041.4,3037.1,0.405504]
[1763334383007,0.4544,3041.4,3037.3,0.405504]
[1763334383201,0.4544,3041.4,3037.5,0.405504]
[1763334383687,0.4544,3041.4,3037.6,0.4802]
[1763334383886,0.405504,3041.1,3037.6,0.4802]
[1763334384088,0.405504,3040.9,3037.6,0.4802]
[1763334384289,0.405504,3040.9,3036.1,0.1839]
[1763334384290,1.5392448,3040.7,3036.1,0.1839]
[1763334384601,0.405504,3039.6,3035.0,0.4802]
[1763334384767,0.405504,3039.4,3035.1,0.4802]
[1763334385202,0.405504,3039.2,3035.1,0.4802]
[1763334385364,1.5392448,3039.0,3035.1,0.4802]
[1763334385571,0.405504,3038.5,3035.1,0.4802]
[1763334385790,0.405504,3038.7,3034.2,0.6659]
[1763334386100,1.1337408,3038.8,3037.1,0.001]
[1763334386101,1.64133004,3037.9,3037.1,0.001]
[1763334386307,0.405504,3037.1,3033.7,1.66135414]
[1763334386466,0.32617075,3037.0,3036.8,0.001]
[1763334386685,1.5392448,3036.8,3033.7,1.66135414]
[1763334386881,1.5392448,3036.8,3033.6,0.001]
[1763334387085,1.1337408,3036.6,3036.5,0.001]
[1763334387320,0.4544,3036.7,3036.5,0.001]
[1763334387526,0.4544,3037.7,3036.5,0.001]
[1763334387732,0.1938,3038.3,3036.5,0.001]
[1763334387733,1.488,3037.6,3036.5,0.001]
[1763334387906,1.488,3037.5,3036.7,0.405504]
[1763334388096,1.488,3037.4,3036.7,0.405504]
[1763334388388,1.488,3037.3,3036.9,0.405504]
[1763334388606,0.4544,3040.0,3036.9,0.405504]
[1763334388800,0.4544,3040.0,3037.1,0.405504]
[1763334389320,0.4544,3040.6,3037.5,1.5392448]
[1763334389484,0.4544,3040.6,3036.5,0.001]
[1763334389485,0.4544,3040.6,3037.7,0.405504]
[1763334389685,0.4544,3040.5,3037.7,0.405504]
[1763334389926,0.4544,3040.5,3037.9,0.405504]
[1763334390093,0.4544,3041.2,3038.1,0.405504]
[1763334390287,0.4544,3041.3,3038.1,0.405504]
[1763334390485,0.4544,3041.3,3038.3,0.405504]
[1763334390725,0.4544,3041.3,3038.4,0.4802]
[1763334390925,0.4564,3042.1,3038.5,0.405504]
[1763334391112,0.4564,3042.1,3038.5,0.589404]
[1763334391310,0.4564,3042.1,3038.7,0.405504]
[1763334391593,0.4564,3042.1,3038.9,0.405504]
[1763334391788,0.002,3042.1,3038.9,0.405504]
[1763334391990,0.002,3042.1,3039.1,0.405504]
[1763334392218,0.002,3042.1,3039.3,0.405504]
[1763334392621,0.002,3042.1,3039.5,0.405504]
[1763334393092,0.002,3042.1,3039.7,0.405504]
[1763334393294,0.002,3042.1,3041.7,0.1839]
[1763334393596,1.1337408,3045.9,3041.7,0.1839]
[1763334393597,0.002,3047.2,3041.8,0.405504]
[1763334393800,0.4544,3047.1,3042.3,2.26537414]
[1763334394106,0.4544,3047.1,3042.2,0.002]
[1763334394107,0.4544,3047.1,3042.5,0.405504]
[1763334394329,0.4544,3047.1,3042.7,0.405504]
[1763334394837,0.4544,3047.1,3042.9,0.405504]
[1763334395247,1.488,3047.0,3043.1,0.405504]
[1763334395429,2.976,3047.0,3043.1,0.405504]
[1763334395754,0.4544,3046.9,3043.3,0.405504]
[1763334395932,0.4544,3046.9,3043.2,0.4802]
[1763334396133,1.68579821,3046.5,3042.4,0.4802]
[1763334396363,1.1337408,3046.7,3041.8,0.4802]
[1763334396364,0.405504,3046.4,3041.8,0.4802]
[1763334396723,3.4284,3046.3,3041.8,0.4802]
[1763334397052,3.4284,3046.3,3041.9,0.405504]
[1763334397219,0.4544,3046.2,3041.9,0.405504]
[1763334397420,0.4544,3046.2,3042.1,0.405504]
[1763334397622,1.487,3046.1,3042.3,0.405504]
[1763334398172,0.1938,3047.7,3042.5,0.405504]
[1763334398319,1.487,3046.0,3042.7,0.405504]
[1763334398526,1.487,3046.0,3042.7,0.77502015]
[1763334398765,1.487,3046.0,3042.9,0.405504]
[1763334399053,1.487,3046.0,3043.3,0.405504]
[1763334399256,1.487,3046.0,3043.4,0.57384081]
[1763334399420,1.487,3046.0,3043.5,0.405504]
[1763334399822,1.487,3046.0,3043.7,0.405504]
[1763334400017,1.487,3046.0,3043.7,0.77502015]
[1763334400219,1.487,3046.0,3043.9,0.405504]
[1763334400665,1.486,3046.0,3044.1,0.405504]
[1763334401019,1.486,3046.0,3044.2,0.4802]
[1763334401340,1.486,3046.0,3043.3,0.1839]
[1763334401534,1.9404,3046.0,3043.5,0.4802]
[1763334401957,0.4544,3045.9,3043.5,0.4802]
[1763334402151,0.4544,3045.9,3042.5,0.4802]
[1763334402547,1.486,3045.8,3040.3,1.6377426]
[1763334402893,0.4544,3045.9,3041.8,0.4802]
[1763334403039,1.486,3045.7,3041.8,0.4802]
[1763334403241,1.5392448,3045.6,3041.8,0.4802]
[1763334403441,1.66855002,3045.3,3041.1,0.4802]
[1763334403641,1.5392448,3045.4,3041.1,0.4802]
[1763334403882,1.1337408,3045.2,3041.1,0.4802]
[1763334404267,0.4544,3045.1,3042.0,0.001]
[1763334404566,1.486,3045.0,3042.0,0.001]
[1763334404769,1.486,3044.9,3042.2,0.405504]
[1763334405274,1.486,3044.9,3042.4,0.405504]
[1763334405670,0.4544,3044.8,3042.6,0.405504]
[1763334405844,1.486,3044.9,3042.6,0.405504]
[1763334406041,0.6482,3045.5,3042.8,0.405504]
[1763334406259,1.486,3044.8,3042.8,0.885704]
[1763334406458,1.486,3044.8,3042.0,0.001]
[1763334406750,0.4544,3044.7,3042.0,0.001]
[1763334406951,1.9404,3044.7,3042.0,0.001]
[1763334407277,1.486,3044.7,3042.2,0.405504]
[1763334407661,1.486,3044.7,3042.4,0.405504]
[1763334408176,1.486,3044.7,3042.0,0.001]
[1763334408177,1.486,3044.7,3042.6,0.405504]
[1763334408401,0.4544,3046.2,3042.6,0.405504]
[1763334408689,0.4544,3046.2,3042.5,0.4802]
[1763334408690,1.486,3044.6,3042.8,0.405504]
[1763334409045,0.4544,3046.0,3043.0,0.405504]
[1763334409251,1.486,3045.9,3043.0,0.77502015]
[1763334409450,1.486,3045.9,3043.2,0.405504]
[1763334409652,1.486,3045.9,3043.2,0.77502015]
[1763334409899,1.486,3045.9,3043.6,0.405504]
[1763334410052,0.002,3046.8,3043.8,0.405504]
[1763334410053,1.486,3046.0,3043.8,0.405504]
[1763334410388,1.486,3046.0,3043.3,0.4802]
[1763334410389,1.486,3046.0,3044.0,0.405504]
[1763334410550,1.486,3045.9,3043.8,0.405504]
[1763334410755,0.4544,3045.8,3043.1,0.6641]
[1763334411060,1.486,3045.7,3043.2,0.4802]
[1763334411261,1.486,3045.7,3042.0,0.001]
[1763334411455,0.4845,3045.6,3042.0,0.001]
[1763334411659,1.486,3045.5,3042.6,0.4536]
[1763334412154,0.4845,3045.4,3042.6,0.4536]
[1763334412787,1.485,3045.3,3042.7,0.405504]
[1763334413088,1.485,3045.2,3042.7,0.405504]
[1763334413287,1.485,3045.2,3042.9,0.405504]
[1763334413662,1.9695,3045.2,3042.9,0.859104]
[1763334413988,1.485,3045.2,3043.1,0.405504]
[1763334414488,1.485,3045.2,3043.3,0.405504]
[1763334414986,0.4845,3046.6,3043.5,1.5392448]
[1763334415189,1.485,3046.0,3043.7,0.405504]
[1763334415366,1.9695,3046.0,3043.7,0.405504]
[1763334415692,1.485,3045.9,3043.9,0.405504]
[1763334415890,1.9695,3045.9,3043.9,0.405504]
[1763334416192,0.4845,3045.8,3042.9,0.4536]
[1763334416487,0.4845,3045.8,3043.0,0.6382]
[1763334416685,1.485,3045.7,3043.0,0.6382]
[1763334416901,1.485,3045.7,3043.1,0.859104]
[1763334417103,0.4845,3045.6,3043.1,0.859104]
[1763334417278,1.485,3045.5,3043.3,0.405504]
[1763334417475,0.002,3046.8,3043.3,0.405504]
[1763334417681,0.002,3046.8,3043.5,0.405504]
[1763334417682,1.485,3046.0,3043.5,0.405504]
[1763334418076,1.485,3046.0,3043.7,0.405504]
[1763334418590,1.485,3046.0,3043.9,0.405504]
[1763334418987,0.4845,3045.9,3043.8,0.4536]
[1763334419581,1.485,3045.8,3043.9,0.405504]
[1763334419970,0.4845,3045.7,3042.9,1.1337408]
[1763334420171,1.485,3045.6,3043.3,2.26537414]
[1763334420483,1.485,3045.6,3043.4,1.47365229]
[1763334420667,0.4845,3045.5,3042.9,2.26537414]
[1763334420868,0.4845,3045.5,3041.5,2.26537414]
[1763334421099,0.1972,3043.0,3041.4,0.001]
[1763334421614,0.4845,3042.9,3041.4,0.001]
[1763334421915,1.485,3042.8,3041.4,0.001]
[1763334422115,0.4845,3042.7,3039.8,0.4536]
[1763334422473,1.485,3042.6,3039.9,1.1337408]
[1763334422673,0.4845,3042.7,3040.0,0.38527149]
[1763334422887,0.4845,3043.6,3040.2,2.26537414]
[1763334423211,1.485,3043.5,3040.6,2.26537414]
[1763334423372,1.485,3043.5,3040.9,0.405504]
[1763334423567,0.4845,3043.4,3039.9,2.26537414]
[1763334423810,0.4845,3043.4,3042.0,0.001]
[1763334424191,0.4845,3043.4,3039.9,0.4536]
[1763334424420,0.4845,3043.4,3041.7,0.001]
[1763334424816,0.405504,3043.3,3041.7,0.001]
[1763334425035,1.5392448,3043.1,3039.0,0.4536]
[1763334425197,0.405504,3042.8,3039.0,0.4536]
[1763334425527,0.405504,3042.6,3039.0,0.4536]
[1763334425737,0.405504,3042.6,3038.5,0.1839]
[1763334425940,1.5392448,3042.4,3037.9,2.26537414]
[1763334426247,1.5392448,3042.2,3038.0,0.22653741]
[1763334426446,1.5392448,3042.2,3037.0,2.26537414]
[1763334426596,0.4845,3042.1,3037.1,0.4536]
[1763334426791,0.405504,3041.8,3037.1,0.4536]
[1763334427295,1.9705,3041.7,3037.5,0.405504]
[1763334427518,1.9705,3041.7,3038.5,1.5392448]
[1763334427723,1.486,3041.6,3038.8,2.26537414]
[1763334427905,0.4845,3042.7,3039.5,0.405504]
[1763334428119,1.486,3042.6,3040.0,2.26537414]
[1763334428311,1.486,3042.6,3040.3,0.405504]
[1763334428636,1.486,3042.6,3040.5,0.405504]
[1763334428834,0.1972,3043.7,3040.5,0.405504]
[1763334429036,1.9705,3043.6,3040.7,0.405504]
[1763334429424,0.405504,3043.4,3040.0,0.405504]
[1763334429741,1.1337408,3043.2,3038.8,0.6382]
[1763334429946,1.1337408,3043.2,3038.9,0.4536]
[1763334429947,1.9705,3043.1,3038.9,0.4536]
[1763334430159,0.405504,3043.0,3038.9,0.4536]
[1763334430299,0.405504,3042.8,3038.9,0.4536]
[1763334430498,1.5392448,3042.6,3038.9,0.4536]
[1763334430948,0.405504,3042.4,3037.9,0.4536]
[1763334431099,1.5392448,3042.4,3037.9,0.4536]
[1763334431303,0.405504,3042.2,3037.2,0.4536]
[1763334431648,0.4845,3042.3,3037.2,0.4536]
[1763334431871,1.9705,3042.2,3037.5,0.405504]
[1763334432051,1.9705,3042.2,3037.7,0.405504]
[1763334432254,1.9705,3042.1,3037.9,0.405504]
[1763334432481,0.4845,3043.6,3038.4,2.26537414]
[1763334432788,0.4845,3043.6,3038.3,0.405504]
[1763334432789,1.486,3042.5,3040.2,0.405504]
[1763334432929,1.486,3042.9,3040.6,2.26537414]
[1763334433129,1.486,3042.9,3040.9,0.405504]
[1763334433568,0.4845,3044.1,3041.1,0.405504]
[1763334433869,0.002,3046.0,3041.1,0.405504]
[1763334434028,1.486,3044.9,3041.6,2.26537414]
[1763334434367,1.486,3044.9,3041.9,1.1337408]
[1763334434553,1.486,3044.9,3042.4,2.62087814]
[1763334434739,1.486,3044.9,3042.8,2.26537414]
[1763334434941,1.486,3044.9,3043.3,2.26537414]
[1763334435140,0.002,3046.0,3043.7,2.26537414]
[1763334435465,0.002,3046.0,3043.9,1.1337408]
[1763334435679,0.002,3046.0,3044.0,3.39911494]
[1763334435975,0.002,3046.0,3044.1,2.26537414]
[1763334436178,0.002,3046.0,3044.0,2.26537414]
[1763334436352,0.002,3046.0,3043.9,2.26537414]
[1763334436554,0.002,3046.0,3044.1,0.405504]
[1763334437279,0.002,3046.0,3044.0,2.67087814]
[1763334437779,0.002,3046.0,3044.2,0.405504]
[1763334438479,0.002,3046.0,3044.2,1.5392448]
[1763334438852,0.002,3046.0,3044.4,0.405504]
[1763334439054,0.002,3046.0,3044.5,0.38046189]
[1763334439406,1.486,3048.7,3045.3,0.405504]
[1763334439678,0.002,3048.9,3045.7,5.46278542]
[1763334439875,0.002,3048.9,3046.1,0.405504]
[1763334440201,0.002,3048.9,3046.1,3.80461894]
[1763334440403,0.002,3048.9,3046.3,0.405504]
[1763334440705,0.4751,3048.5,3045.6,0.405504]
[1763334440986,0.002,3048.5,3046.2,2.67087814]
[1763334441190,0.002,3048.5,3046.5,1.5392448]
[1763334441400,0.002,3048.5,3047.1,2.0630891]
[1763334441704,0.002,3048.9,3047.3,0.405504]
[1763334441843,0.1464745,3049.5,3047.3,1.63206806]
[1763334442043,0.1464745,3049.5,3047.8,0.405504]
[1763334442242,1.485,3051.6,3047.5,1.66334939]
[1763334442486,0.002,3048.0,3047.5,2.06885339]
[1763334442689,0.002,3048.0,3047.7,0.405504]
[1763334442891,0.002,3048.0,3046.5,2.30947169]
[1763334442892,0.002,3048.0,3046.5,1.6377426]
[1763334443039,0.002,3048.0,3044.7,2.26537414]
[1763334443290,1.9696,3047.9,3044.5,0.38046189]
[1763334443739,1.485,3047.9,3044.5,0.38046189]
[1763334443903,0.4846,3047.8,3044.5,0.38046189]
[1763334444329,0.4846,3047.8,3043.7,1.6377426]
[1763334444691,0.4846,3047.8,3043.7,3.24745842]
[1763334444916,1.484,3047.7,3043.7,1.6377426]
[1763334445424,1.9686,3047.7,3043.8,1.6946197]
[1763334445649,1.9686,3047.7,3043.7,1.6377426]
[1763334445650,0.4846,3047.6,3043.7,1.6377426]
[1763334445947,1.484,3047.5,3042.4,2.26537414]
[1763334446145,1.484,3047.5,3042.5,2.49191155]
[1763334446424,0.4846,3047.4,3042.7,3.96501042]
[1763334446628,0.4846,3047.4,3042.5,0.22653741]
[1763334446629,0.4846,3047.4,3043.1,3.39911494]
[1763334446956,0.002,3048.0,3044.9,2.08547002]
[1763334447115,0.002,3048.0,3044.9,5.48458496]
[1763334447293,0.002,3048.0,3045.9,2.03726969]
[1763334447728,0.002,3048.0,3045.9,0.405504]
[1763334447915,0.002,3048.3,3046.1,2.03995348]
[1763334448229,0.002,3048.3,3045.9,1.981]
[1763334448430,0.002,3048.3,3046.0,2.386504]
[1763334448594,1.484,3049.5,3046.7,2.07080335]
[1763334448795,1.484,3049.5,3046.5,1.981]
[1763334448796,1.484,3049.5,3047.1,0.405504]
[1763334449000,0.4846,3049.4,3047.1,0.405504]
[1763334449194,0.4846,3049.4,3046.1,0.51520105]
[1763334449395,0.4846,3049.4,3043.9,1.66933451]
[1763334449733,1.484,3049.3,3043.9,1.66933451]
[1763334449921,0.4846,3049.4,3043.9,2.80307531]
[1763334450122,1.9686,3049.3,3044.4,1.69858049]
[1763334450327,1.9686,3049.3,3045.6,1.981]
[1763334450642,0.4846,3049.2,3046.5,2.10108947]
[1763334450835,0.4846,3049.7,3046.8,0.405504]
[1763334451039,0.4846,3049.7,3047.0,2.386504]
[1763334451198,0.4846,3049.7,3047.2,0.405504]
[1763334451399,0.4846,3049.7,3047.4,0.405504]
[1763334451801,0.4846,3049.7,3047.3,0.2386504]
[1763334452000,0.4846,3049.7,3046.2,1.1337408]
[1763334452202,0.4846,3049.7,3038.8,3.2907632]
[1763334452203,0.4846,3049.7,3045.3,0.29825531]
[1763334452406,0.4846,3049.7,3044.6,0.29825531]
[1763334452703,1.484,3049.6,3044.9,2.26537414]
[1763334452904,1.484,3049.6,3044.9,1.67996602]
[1763334453123,0.4846,3049.5,3044.9,1.67996602]
[1763334453448,0.4846,3049.5,3045.6,1.66974342]
[1763334453616,1.62346225,3052.9,3046.5,5.865504]
[1763334453617,0.4846,3050.3,3046.5,5.865504]
[1763334453819,1.484,3050.2,3047.3,0.405504]
[1763334454017,1.484,3053.9,3047.5,0.405504]
[1763334454204,0.4846,3051.2,3047.4,0.405504]
[1763334454408,0.4846,3051.2,3047.8,2.0935735]
[1763334454606,0.4846,3051.2,3047.8,4.0745735]
[1763334454810,0.4846,3051.2,3048.0,0.405504]
[1763334455419,1.483,3051.1,3048.0,0.405504]
[1763334455844,0.4846,3051.0,3048.0,0.405504]
[1763334456145,0.4846,3051.0,3047.9,1.54119815]
[1763334456146,0.4846,3051.0,3048.4,0.405504]
[1763334456523,0.4846,3051.0,3048.0,0.405504]
[1763334457142,0.4846,3051.0,3048.2,2.386504]
[1763334457446,0.4846,3051.0,3048.4,1.5392448]
[1763334457742,1.483,3051.2,3048.4,0.405504]
[1763334458152,0.4846,3051.1,3048.3,0.35202448]
[1763334458351,0.4846,3051.1,3046.8,1.60043238]
[1763334458538,1.483,3051.0,3047.3,1.1337408]
[1763334458855,1.483,3051.0,3047.9,3.5202448]
[1763334459154,1.483,3051.0,3047.9,1.1337408]
[1763334459354,1.483,3051.0,3046.9,0.1001]
[1763334459562,1.483,3051.0,3047.9,0.2003]
[1763334459742,1.483,3051.0,3047.9,2.1813]
[1763334459946,2.32881864,3056.7,3051.0,0.405504]
[1763334460255,0.188,3057.6,3051.0,0.405504]
[1763334460256,0.002,3051.6,3051.0,0.405504]
[1763334460465,1.483,3054.9,3051.2,0.405504]
[1763334460633,0.4846,3054.8,3051.2,0.405504]
[1763334460957,0.002,3051.9,3051.4,0.405504]
[1763334461131,0.002,3051.9,3051.4,3.5202448]
[1763334461332,0.4846,3054.8,3051.8,1.981]
[1763334461660,1.671,3055.5,3052.6,0.405504]
[1763334462009,1.671,3055.5,3052.4,0.405504]
[1763334462010,1.671,3055.5,3052.9,1.67525764]
[1763334462158,1.671,3055.5,3052.9,0.405504]
[1763334462469,1.671,3055.5,3053.1,0.405504]
[1763334462639,1.483,3055.5,3053.3,0.405504]
[1763334463041,0.14459597,3056.2,3053.7,1.67422341]
[1763334463286,0.4846,3056.1,3054.0,0.405504]
[1763334463440,0.4846,3056.1,3053.7,1.1337408]
[1763334463638,0.4846,3056.1,3053.2,0.17375448]
[1763334463837,1.482,3056.0,3052.4,0.405504]
[1763334464160,0.4846,3055.9,3053.2,0.405504]
[1763334464364,0.4846,3055.9,3053.4,0.405504]
[1763334464558,0.4846,3055.9,3053.6,0.405504]
[1763334464760,0.4846,3055.9,3052.5,2.26537414]
[1763334464963,0.4846,3055.9,3051.7,2.63454043]
[1763334465133,1.482,3055.8,3051.8,2.26537414]
[1763334465433,1.482,3055.8,3051.8,0.1983]
[1763334465640,0.6726,3055.7,3052.0,1.63832786]
[1763334465835,0.6726,3055.7,3052.4,0.405504]
[1763334466062,0.4846,3055.6,3052.8,2.06568022]
[1763334466264,0.4846,3055.6,3053.0,0.405504]
[1763334466434,0.4846,3055.6,3053.1,0.36916629]
[1763334466635,0.4846,3055.6,3052.3,0.405504]
[1763334466847,1.481,3055.5,3052.4,0.1983]
[1763334467141,1.481,3055.4,3052.5,1.90841109]
[1763334467363,1.481,3055.4,3052.7,0.405504]
[1763334467574,1.9656,3055.4,3052.7,1.5392448]
[1763334467766,1.9656,3055.4,3052.6,0.52234519]
[1763334467767,0.4846,3055.3,3052.8,0.56746629]
[1763334468080,0.4846,3055.3,3052.1,0.44711683]
[1763334468290,0.405504,3055.2,3050.3,0.1001]
[1763334468494,0.4846,3055.3,3050.3,0.1001]
[1763334468801,1.9656,3055.2,3050.4,2.18228224]
[1763334468950,0.6726,3056.5,3052.1,3.479]
[1763334469153,0.6726,3056.5,3051.3,1.1337408]
[1763334469154,0.6726,3056.5,3053.0,2.26537414]
[1763334469349,0.188,3057.1,3053.4,1.6377426]
[1763334469664,0.6726,3057.1,3054.4,2.10223407]
[1763334469860,0.6726,3057.1,3054.5,0.36916629]
[1763334470197,0.4846,3057.8,3054.7,1.60338361]
[1763334470353,0.4846,3057.8,3055.1,0.405504]
[1763334470554,0.4846,3058.3,3055.1,0.405504]
[1763334470908,0.4846,3058.3,3055.7,2.01548311]
[1763334471203,1.481,3058.4,3055.8,0.56746629]
[1763334471352,0.4904,3058.3,3055.8,0.56746629]
[1763334471552,0.4904,3058.3,3055.9,2.25167327]
[1763334471783,0.4904,3058.3,3056.1,0.405504]
[1763334471985,0.188,3061.9,3056.3,0.405504]
[1763334472185,0.4904,3061.0,3056.5,2.02210678]
[1763334472388,0.4904,3061.0,3057.2,0.405504]
[1763334472604,0.4904,3061.0,3057.4,0.405504]